fUSD/lending_fUSD_20240209
["ID","MTS","AMOUNT","RATE_DAILY","PERIOD"]
[313614512,1707478296411,-20371.27993524,0.00041936,7]
[313614513,1707478296423,-187026.9047784,0.00041936,7]
[313614514,1707478296440,-8569.41346287,0.00041936,7]
[313614515,1707478296456,-70267.96660807,0.00041936,7]
[313614516,1707478297391,-407.75428958,0.00029949,2]
[313614517,1707478297401,-1353.35258582,0.00035609,7]
[313614518,1707478297411,-832.4,0.00041095,31]
[313614519,1707478297421,-179.47645742,0.00041095,31]
[313614520,1707478297433,-3905.53,0.00041369,31]
[313614521,1707478297443,-521.07167397,0.00041369,31]
[313614522,1707478298362,-4854.7667729,0.000228,2]
[313614523,1707478298372,-1013.50739436,0.00030979,2]
[313614524,1707478298381,-294.13245507,0.00035608,4]
[313614525,1707478298391,-1353.35258582,0.00036754,8]
[313614526,1707478298401,-180.0,0.00036935,2]
[313614527,1707478298412,-500.0,0.00041095,31]
[313614528,1707478298422,-196.83633945,0.00041095,31]
[313614529,1707478298431,-311.32832603,0.00041369,31]
[313614530,1707478298441,-500.0,0.00041369,31]
[313614531,1707478298451,-150.95404637,0.00041643,31]
[313614541,1707478967587,1296.4651,0.00026585,14]
[313614542,1707479093422,-1000.0,0.00041095,120]
[313614543,1707479093488,-1000.0,0.00041369,120]
[313614544,1707479093551,-1000.0,0.00041643,120]
[313614545,1707479093609,-1000.0,0.00041917,120]
[313614546,1707479093659,-259.01095296,0.0004196,60]
[313614547,1707479093686,-421.88123587,0.00042,120]
[313614548,1707479093720,-1000.0,0.00042191,120]
[313614549,1707479093776,-1000.0,0.00042465,120]
[313614550,1707479093826,-5000.0,0.000425,40]
[313614551,1707479093850,-8909.95,0.000425,120]
[313614552,1707479093883,-1000.0,0.00042739,120]
[313614553,1707479093933,-150.0,0.0004296,60]
[313614554,1707479093959,-230.4059399,0.00043,120]
[313614555,1707479093989,-1000.0,0.00043013,120]
[313614556,1707479094038,-1000.0,0.00043287,120]
[313614557,1707479094080,-150.0,0.000434,33]
[313614558,1707479094109,-1000.0,0.00043561,120]
[313614559,1707479094151,-1000.0,0.00043835,120]
[313614560,1707479094174,-3000.0,0.00043835,120]
[313614561,1707479094213,-150.0,0.000439,33]
[313614562,1707479094238,-150.0,0.0004396,60]
[313614563,1707479094261,-3000.0,0.00043972,120]
[313614564,1707479094285,-3511.71374145,0.0004398,117]
[313614565,1707479094310,-1385.5114032,0.00044,120]
[313614566,1707479094333,-3206.5834572,0.00044,120]
[313614567,1707479094365,-1000.0,0.00044109,120]
[313614568,1707479094390,-2975.15130843,0.00044109,120]
[313614569,1707479094431,-1000.0,0.00044383,120]
[313614570,1707479094470,-150.0,0.000444,34]
[313614571,1707479094498,-1000.0,0.00044657,120]
[313614572,1707479094535,-3439.0,0.00044705,60]
[313614573,1707479094563,-150.0,0.000449,34]
[313614574,1707479094590,-1000.0,0.00044931,120]
[313614575,1707479094631,-100000.0,0.00045,35]
[313614576,1707479094657,-353.12905582,0.00045,45]
[313614577,1707479094683,-337.31249849,0.00045,60]
[313614578,1707479094707,-5000.0,0.00045,45]
[313614579,1707479094731,-55572.399999,0.00045,120]
[313614580,1707479094758,-1000000.0,0.00045,40]
[313614581,1707479094783,-787497.95040768,0.00045,40]
[313614582,1707479102260,-212502.04959232,0.00045,40]
[313614583,1707479102281,-91052.44336036,0.00045,120]
[313614584,1707479102309,-1000.0,0.00045205,120]
[313614585,1707479102345,-150.0,0.000454,35]
[313614586,1707479102382,-1000.0,0.00045479,120]
[313614587,1707479102414,-1000.0,0.00045753,120]
[313614588,1707479102447,-465.0066828,0.0004588,100]
[313614589,1707479102471,-150.0,0.000459,36]
[313614590,1707479102498,-100000.0,0.00046,36]
[313614591,1707479102521,-360.48667489,0.00046,47]
[313614592,1707479102543,-322.0,0.00046,120]
[313614593,1707479102564,-700.0,0.00046,120]
[313614594,1707479102587,-82671.91572077,0.00046,45]
[313614595,1707479102610,-174.0,0.00046,90]
[313614596,1707479102633,-9294.53,0.00046,33]
[313614597,1707479102659,-9292.0,0.00046,33]
[313614598,1707479102681,-1000.0,0.00046027,120]
[313614599,1707479102713,-4029.40446737,0.00046299,120]
[313614600,1707479102738,-500.0,0.00046301,60]
[313614601,1707479102762,-529.82,0.00046301,60]
[313614602,1707479102785,-314.03804533,0.00046301,60]
[313614603,1707479102807,-500.0,0.00046301,60]
[313614604,1707479102829,-500.0,0.00046301,60]
[313614605,1707479102850,-1383.61,0.00046301,60]
[313614606,1707479102873,-750.13,0.00046301,60]
[313614607,1707479102896,-625.79,0.00046301,60]
[313614608,1707479102919,-529.62,0.00046301,60]
[313614609,1707479102942,-500.0,0.00046301,60]
[313614610,1707479102965,-883.86,0.00046301,60]
[313614611,1707479102989,-500.0,0.00046301,60]
[313614612,1707479103014,-500.0,0.00046301,60]
[313614613,1707479103036,-500.0,0.00046301,60]
[313614614,1707479103058,-500.0,0.00046301,60]
[313614615,1707479103080,-500.0,0.00046301,60]
[313614616,1707479103102,-1312.45,0.00046301,60]
[313614617,1707479103124,-415.48752138,0.00046301,120]
[313614618,1707479103147,-572.5,0.00046301,60]
[313614619,1707479103169,-580.82,0.00046301,60]
[313614620,1707479103192,-518.83,0.00046301,60]
[313614621,1707479103445,-565.44,0.00046301,60]
[313614622,1707479103469,-519.6,0.00046301,60]
[313614623,1707479103495,-502.16,0.00046301,60]
[313614624,1707479103519,-735.33,0.00046301,60]
[313614625,1707479103542,-3580.07,0.00046301,60]
[313614626,1707479103566,-1111.84,0.00046301,60]
[313614627,1707479103590,-878.04,0.00046301,60]
[313614628,1707479103614,-1052.33,0.00046301,60]
[313614629,1707479103637,-2650.42,0.00046301,60]
[313614630,1707479103661,-1991.51,0.00046301,60]
[313614631,1707479103684,-545.9,0.00046301,60]
[313614632,1707479103708,-2950.64,0.00046301,60]
[313614633,1707479103730,-500.0,0.00046301,60]
[313614634,1707479103757,-1310.12,0.00046301,60]
[313614635,1707479103780,-666.56,0.00046301,60]
[313614636,1707479103804,-806.89,0.00046301,60]
[313614637,1707479103831,-656.14,0.00046301,60]
[313614638,1707479103858,-2945.74,0.00046301,60]
[313614639,1707479103884,-802.7,0.00046301,60]
[313614640,1707479103911,-500.0,0.00046301,60]
[313614641,1707479103943,-669.27,0.00046301,60]
[313614642,1707479103972,-621.58,0.00046301,60]
[313614643,1707479104006,-1714.15,0.00046301,60]
[313614644,1707479104035,-611.30101976,0.00046301,60]
[313614645,1707479104063,-2606.79,0.00046301,60]
[313614646,1707479104089,-1507.34,0.00046301,60]
[313614647,1707479104114,-647.97,0.00046301,60]
[313614648,1707479104141,-588.44,0.00046301,60]
[313614649,1707479104166,-869.3,0.00046301,60]
[313614650,1707479104190,-4092.82,0.00046301,60]
[313614651,1707479104215,-24677.47,0.00046301,60]
[313614652,1707479104244,-500.0,0.00046301,60]
[313614653,1707479104268,-2770.41,0.00046301,60]
[313614654,1707479104292,-1186.8,0.00046301,60]
[313614655,1707479104315,-1403.86,0.00046301,60]
[313614656,1707479104338,-2796.59,0.00046301,60]
[313614657,1707479104361,-1038.36,0.00046301,60]
[313614658,1707479104386,-779.99,0.00046301,60]
[313614659,1707479104409,-16794.92,0.00046301,60]
[313614660,1707479104434,-500.0,0.00046301,60]
[313614661,1707479104457,-1616.39,0.00046301,60]
[313614662,1707479104481,-500.0,0.00046301,60]
[313614663,1707479104508,-2353.16,0.00046301,60]
[313614664,1707479104530,-502.78,0.00046301,60]
[313614665,1707479104554,-658.12,0.00046301,60]
[313614666,1707479104577,-10927.63,0.00046301,60]
[313614667,1707479104600,-1473.45,0.00046301,60]
[313614668,1707479104625,-21611.97,0.00046301,60]
[313614669,1707479104666,-870.35,0.00046301,60]
[313614670,1707479104691,-567.78,0.00046301,60]
[313614671,1707479104716,-500.0,0.00046301,60]
[313614672,1707479104741,-533.62,0.00046301,60]
[313614673,1707479104765,-1988.9,0.00046301,60]
[313614674,1707479104789,-631.87,0.00046301,60]
[313614675,1707479104813,-506.81,0.00046301,60]
[313614676,1707479104837,-1833.17,0.00046301,60]
[313614677,1707479104862,-2405.01,0.00046301,60]
[313614678,1707479104884,-500.0,0.00046301,60]
[313614679,1707479104907,-649.02,0.00046301,60]
[313614680,1707479104934,-483.80463532,0.00046301,60]
[313614681,1707479104958,-676.92,0.00046301,60]
[313614682,1707479104981,-703.08,0.00046301,60]
[313614683,1707479105006,-500.0,0.00046301,60]
[313614684,1707479105034,-2442.19,0.00046301,60]
[313614685,1707479105059,-696.58,0.00046301,60]
[313614686,1707479105086,-3387.02,0.00046301,60]
[313614687,1707479105113,-849.43,0.00046301,60]
[313614688,1707479105143,-879.65,0.00046301,60]
[313614689,1707479105169,-1155.9,0.00046301,60]
[313614690,1707479105195,-1517.5,0.00046301,60]
[313614691,1707479105223,-793.29,0.00046301,60]
[313614692,1707479105250,-555.42,0.00046301,60]
[313614693,1707479105278,-593.82,0.00046301,60]
[313614694,1707479105306,-1083.87,0.00046301,60]
[313614695,1707479105333,-4074.15,0.00046301,60]
[313614696,1707479105360,-852.06,0.00046301,60]
[313614697,1707479105387,-997.53,0.00046301,60]
[313614698,1707479105412,-675.83,0.00046301,60]
[313614699,1707479105443,-1650.08,0.00046301,60]
[313614700,1707479105471,-2040.33,0.00046301,60]
[313614701,1707479105498,-4243.97,0.00046301,60]
[313614702,1707479105523,-1285.3,0.00046301,60]
[313614703,1707479105550,-4394.87,0.00046301,60]
[313614704,1707479105577,-2034.86,0.00046301,60]
[313614705,1707479105604,-4785.69,0.00046301,60]
[313614706,1707479105629,-1057.95,0.00046301,60]
[313614707,1707479105654,-850.37,0.00046301,60]
[313614708,1707479105679,-1278.95,0.00046301,60]
[313614709,1707479105705,-763.03,0.00046301,60]
[313614710,1707479105733,-552.158993,0.00046301,60]
[313614711,1707479105761,-2132.27,0.00046301,60]
[313614712,1707479105787,-2935.22,0.00046301,60]
[313614713,1707479105813,-4869.74,0.00046301,60]
[313614714,1707479105838,-654.85,0.00046301,60]
[313614715,1707479105863,-2692.47,0.00046301,60]
[313614716,1707479105887,-1516.94,0.00046301,60]
[313614717,1707479105913,-19792.65,0.00046301,60]
[313614718,1707479105940,-4720.7,0.00046301,60]
[313614719,1707479105965,-10355.12,0.00046301,60]
[313614720,1707479105994,-7055.64,0.00046301,60]
[313614721,1707479106021,-1596.82,0.00046301,60]
[313614722,1707479106048,-5555.14,0.00046301,60]
[313614723,1707479106076,-640.8,0.00046301,60]
[313614724,1707479106104,-1181.48,0.00046301,60]
[313614725,1707479106131,-563.56,0.00046301,60]
[313614726,1707479106409,-1556.82,0.00046301,60]
[313614727,1707479106436,-778.84,0.00046301,60]
[313614728,1707479106463,-6120.32,0.00046301,60]
[313614729,1707479106491,-912.01,0.00046301,60]
[313614730,1707479106517,-526.80600224,0.00046301,60]
[313614731,1707479106543,-720.59,0.00046301,60]
[313614732,1707479106570,-3115.81,0.00046301,60]
[313614733,1707479106594,-840.2,0.00046301,60]
[313614734,1707479106617,-1829.77,0.00046301,60]
[313614735,1707479106642,-2239.84,0.00046301,60]
[313614736,1707479106668,-28289.12,0.00046301,60]
[313614737,1707479106693,-1548.76,0.00046301,60]
[313614738,1707479106717,-3689.16,0.00046301,60]
[313614739,1707479106742,-1970.75,0.00046301,60]
[313614740,1707479106765,-2804.36,0.00046301,60]
[313614741,1707479106788,-891.88,0.00046301,60]
[313614742,1707479106811,-743.88,0.00046301,60]
[313614743,1707479106835,-1125.49,0.00046301,60]
[313614744,1707479106859,-901.45,0.00046301,60]
[313614745,1707479106883,-652.04,0.00046301,60]
[313614746,1707479106907,-2570.07,0.00046301,60]
[313614747,1707479106931,-805.7,0.00046301,60]
[313614748,1707479106958,-8258.9,0.00046301,60]
[313614749,1707479106982,-2293.32,0.00046301,60]
[313614750,1707479107007,-500.0,0.00046301,60]
[313614751,1707479107032,-1432.04,0.00046301,60]
[313614752,1707479107056,-263.1953223,0.00046301,60]
[313614753,1707479107079,-2566.29,0.00046301,60]
[313614754,1707479107101,-500.0,0.00046301,60]
[313614755,1707479107125,-12146.69,0.00046301,60]
[313614756,1707479107148,-1062.34,0.00046301,60]
[313614757,1707479107171,-554.26,0.00046301,60]
[313614758,1707479107196,-178.28068142,0.00046301,60]
[313614759,1707479107222,-826.88,0.00046301,60]
[313614760,1707479107248,-537.69,0.00046301,60]
[313614761,1707479107272,-590.25,0.00046301,60]
[313614762,1707479107298,-2310.15,0.00046301,60]
[313614763,1707479107324,-1322.12,0.00046301,60]
[313614764,1707479107348,-2732.38,0.00046301,60]
[313614765,1707479107374,-500.0,0.00046301,60]
[313614766,1707479107400,-651.25,0.00046301,60]
[313614767,1707479107424,-1761.21,0.00046301,60]
[313614768,1707479107449,-562.91,0.00046301,60]
[313614769,1707479107474,-812.61,0.00046301,60]
[313614770,1707479107498,-3513.3,0.00046301,60]
[313614771,1707479107523,-7770.68,0.00046301,60]
[313614772,1707479107546,-506.89,0.00046301,60]
[313614773,1707479107572,-150.0,0.000464,36]
[313614774,1707479107598,-500.0,0.00046575,60]
[313614775,1707479107624,-529.82,0.00046575,60]
[313614776,1707479107648,-500.0,0.00046575,60]
[313614777,1707479107673,-500.0,0.00046575,60]
[313614778,1707479107698,-1383.61,0.00046575,60]
[313614779,1707479107722,-750.13,0.00046575,60]
[313614780,1707479107749,-625.79,0.00046575,60]
[313614781,1707479107774,-529.62,0.00046575,60]
[313614782,1707479107799,-500.0,0.00046575,60]
[313614783,1707479107823,-883.86,0.00046575,60]
[313614784,1707479107848,-500.0,0.00046575,60]
[313614785,1707479107872,-168.43973724,0.00046575,60]
[313614786,1707479107895,-500.0,0.00046575,60]
[313614787,1707479107919,-500.0,0.00046575,60]
[313614788,1707479107944,-500.0,0.00046575,60]
[313614789,1707479107966,-1312.45,0.00046575,60]
[313614790,1707479107989,-572.5,0.00046575,60]
[313614791,1707479108014,-580.82,0.00046575,60]
[313614792,1707479108041,-518.83,0.00046575,60]
[313614793,1707479108064,-565.44,0.00046575,60]
[313614794,1707479108087,-519.6,0.00046575,60]
[313614795,1707479108110,-502.16,0.00046575,60]
[313614796,1707479108133,-735.33,0.00046575,60]
[313614797,1707479108155,-3580.07,0.00046575,60]
[313614798,1707479108179,-1111.84,0.00046575,60]
[313614799,1707479108202,-878.04,0.00046575,60]
[313614800,1707479108225,-1052.33,0.00046575,60]
[313614801,1707479108248,-2650.42,0.00046575,60]
[313614802,1707479108271,-1991.51,0.00046575,60]
[313614803,1707479108294,-545.9,0.00046575,60]
[313614804,1707479108317,-2950.64,0.00046575,60]
[313614805,1707479108340,-500.0,0.00046575,60]
[313614806,1707479108363,-1310.12,0.00046575,60]
[313614807,1707479108387,-666.56,0.00046575,60]
[313614808,1707479108411,-806.89,0.00046575,60]
[313614809,1707479108435,-656.14,0.00046575,60]
[313614810,1707479108458,-2945.74,0.00046575,60]
[313614811,1707479108481,-802.7,0.00046575,60]
[313614812,1707479108505,-499.50941731,0.00046575,60]
[313614813,1707479108528,-669.27,0.00046575,60]
[313614814,1707479108552,-621.58,0.00046575,60]
[313614815,1707479108576,-1714.15,0.00046575,60]
[313614816,1707479108600,-2606.79,0.00046575,60]
[313614817,1707479108624,-1507.34,0.00046575,60]
[313614818,1707479108648,-647.97,0.00046575,60]
[313614819,1707479108673,-588.44,0.00046575,60]
[313614820,1707479108696,-869.3,0.00046575,60]
[313614821,1707479108720,-4092.82,0.00046575,60]
[313614822,1707479108746,-24677.47,0.00046575,60]
[313614823,1707479108770,-499.36952708,0.00046575,60]
[313614824,1707479108793,-2770.41,0.00046575,60]
[313614825,1707479108816,-1186.8,0.00046575,60]
[313614826,1707479108840,-1403.86,0.00046575,60]
[313614827,1707479108863,-2796.59,0.00046575,60]
[313614828,1707479108888,-1038.36,0.00046575,60]
[313614829,1707479108911,-779.99,0.00046575,60]
[313614830,1707479109124,-16794.92,0.00046575,60]
[313614831,1707479109151,-500.0,0.00046575,60]
[313614832,1707479109178,-1616.39,0.00046575,60]
[313614833,1707479109204,-500.0,0.00046575,60]
[313614834,1707479109231,-2353.16,0.00046575,60]
[313614835,1707479109259,-502.78,0.00046575,60]
[313614836,1707479109283,-658.12,0.00046575,60]
[313614837,1707479109308,-10927.63,0.00046575,60]
[313614838,1707479109331,-1473.45,0.00046575,60]
[313614839,1707479109357,-21611.97,0.00046575,60]
[313614840,1707479109381,-870.35,0.00046575,60]
[313614841,1707479109405,-567.78,0.00046575,60]
[313614842,1707479109430,-438.82818049,0.00046575,60]
[313614843,1707479109456,-533.62,0.00046575,60]
[313614844,1707479109480,-1988.9,0.00046575,60]
[313614845,1707479109506,-631.87,0.00046575,60]
[313614846,1707479109530,-506.81,0.00046575,60]
[313614847,1707479109556,-1833.17,0.00046575,60]
[313614848,1707479109583,-2405.01,0.00046575,60]
[313614849,1707479109609,-500.0,0.00046575,60]
[313614850,1707479109634,-649.02,0.00046575,60]
[313614851,1707479109659,-676.92,0.00046575,60]
[313614852,1707479109688,-703.08,0.00046575,60]
[313614853,1707479109713,-500.0,0.00046575,60]
[313614854,1707479109738,-2442.19,0.00046575,60]
[313614855,1707479109765,-696.58,0.00046575,60]
[313614856,1707479109789,-3387.02,0.00046575,60]
[313614857,1707479109813,-849.43,0.00046575,60]
[313614858,1707479109837,-879.65,0.00046575,60]
[313614859,1707479109861,-1155.9,0.00046575,60]
[313614860,1707479109885,-1517.5,0.00046575,60]
[313614861,1707479109908,-793.29,0.00046575,60]
[313614862,1707479109932,-555.42,0.00046575,60]
[313614863,1707479109956,-593.82,0.00046575,60]
[313614864,1707479109980,-1083.87,0.00046575,60]
[313614865,1707479110006,-4074.15,0.00046575,60]
[313614866,1707479110031,-852.06,0.00046575,60]
[313614867,1707479110055,-997.53,0.00046575,60]
[313614868,1707479110078,-675.83,0.00046575,60]
[313614869,1707479110102,-1650.08,0.00046575,60]
[313614870,1707479110126,-2040.33,0.00046575,60]
[313614871,1707479110150,-4243.97,0.00046575,60]
[313614872,1707479110172,-1285.3,0.00046575,60]
[313614873,1707479110196,-4394.87,0.00046575,60]
[313614874,1707479110220,-2034.86,0.00046575,60]
[313614875,1707479110247,-4785.69,0.00046575,60]
[313614876,1707479110274,-1057.95,0.00046575,60]
[313614877,1707479110300,-850.37,0.00046575,60]
[313614878,1707479110324,-1278.95,0.00046575,60]
[313614879,1707479110350,-763.03,0.00046575,60]
[313614880,1707479110374,-2132.27,0.00046575,60]
[313614881,1707479110399,-2935.22,0.00046575,60]
[313614882,1707479110425,-4869.74,0.00046575,60]
[313614883,1707479110449,-654.85,0.00046575,60]
[313614884,1707479110474,-2692.47,0.00046575,60]
[313614885,1707479110501,-1516.94,0.00046575,60]
[313614886,1707479110527,-19792.65,0.00046575,60]
[313614887,1707479110551,-4720.7,0.00046575,60]
[313614888,1707479110577,-10355.12,0.00046575,60]
[313614889,1707479110600,-7055.64,0.00046575,60]
[313614890,1707479110624,-1596.82,0.00046575,60]
[313614891,1707479110648,-5555.14,0.00046575,60]
[313614892,1707479110673,-640.8,0.00046575,60]
[313614893,1707479110697,-1181.48,0.00046575,60]
[313614894,1707479110719,-1556.82,0.00046575,60]
[313614895,1707479110744,-778.84,0.00046575,60]
[313614896,1707479110768,-6120.32,0.00046575,60]
[313614897,1707479110792,-912.01,0.00046575,60]
[313614898,1707479110814,-720.59,0.00046575,60]
[313614899,1707479110837,-3115.81,0.00046575,60]
[313614900,1707479110862,-840.2,0.00046575,60]
[313614901,1707479110885,-1829.77,0.00046575,60]
[313614902,1707479110909,-2239.84,0.00046575,60]
[313614903,1707479110936,-28289.12,0.00046575,60]
[313614904,1707479110959,-1548.76,0.00046575,60]
[313614905,1707479110984,-3689.16,0.00046575,60]
[313614906,1707479111009,-1970.75,0.00046575,60]
[313614907,1707479111031,-2804.36,0.00046575,60]
[313614908,1707479111055,-891.88,0.00046575,60]
[313614909,1707479111078,-743.88,0.00046575,60]
[313614910,1707479111103,-1125.49,0.00046575,60]
[313614911,1707479111126,-901.45,0.00046575,60]
[313614912,1707479111150,-652.04,0.00046575,60]
[313614913,1707479111173,-2570.07,0.00046575,60]
[313614914,1707479111196,-805.7,0.00046575,60]
[313614915,1707479111220,-8258.9,0.00046575,60]
[313614916,1707479111245,-2293.32,0.00046575,60]
[313614917,1707479111270,-1432.04,0.00046575,60]
[313614918,1707479111294,-553.85775791,0.00046575,60]
[313614919,1707479111320,-2566.29,0.00046575,60]
[313614920,1707479111344,-467.41860249,0.00046575,60]
[313614921,1707479111370,-12146.69,0.00046575,60]
[313614922,1707479111395,-1062.34,0.00046575,60]
[313614923,1707479111420,-554.26,0.00046575,60]
[313614924,1707479111444,-826.88,0.00046575,60]
[313614925,1707479111471,-537.69,0.00046575,60]
[313614926,1707479111499,-590.25,0.00046575,60]
[313614927,1707479111524,-2310.15,0.00046575,60]
[313614928,1707479111553,-1322.12,0.00046575,60]
[313614929,1707479111579,-2732.38,0.00046575,60]
[313614930,1707479111606,-500.0,0.00046575,60]
[313614931,1707479111632,-651.25,0.00046575,60]
[313614932,1707479111658,-1761.21,0.00046575,60]
[313614933,1707479111683,-562.91,0.00046575,60]
[313614934,1707479111880,-812.61,0.00046575,60]
[313614935,1707479111905,-3513.3,0.00046575,60]
[313614936,1707479111931,-7770.68,0.00046575,60]
[313614937,1707479111955,-506.89,0.00046575,60]
[313614938,1707479112513,2073.5,0.00046301,60]
[313614939,1707479112594,2073.5,0.00046575,60]
[313614940,1707479112649,860.72,0.00046301,60]
[313614941,1707479112701,860.72,0.00046575,60]
[313614942,1707479112924,61224.73256112,0.000465,120]
[313614943,1707479112962,2878.98,0.00046301,60]
[313614944,1707479113300,2878.98,0.00046575,60]
[313614945,1707479113603,3566.68812688,0.0004398,117]
[313614946,1707479113649,628.75,0.00046301,60]
[313614947,1707479113765,628.75,0.00046575,60]
[313614948,1707479123161,5032.83,0.00046301,60]
[313614949,1707479123406,5032.83,0.00046575,60]
[313615026,1707479434163,-155.0,0.00024869,2]
[313615027,1707479434173,-161.27842766,0.00024869,2]
[313615028,1707479434183,-201.68300464,0.0002487,2]
[313615029,1707479434194,-568.48091707,0.0002487,2]
[313615030,1707479434204,-489.42817467,0.00024871,2]
[313615031,1707479434214,-3159.13814169,0.00024871,2]
[313615032,1707479434224,-150.0,0.00024879,2]
[313615033,1707479434234,-160.39387963,0.00024884,2]
[313615034,1707479434247,-1147.61169515,0.00024994,2]
[313615035,1707479434264,-649.48299803,0.00024994,2]
[313615036,1707479434294,-1731.90627148,0.00024994,2]
[313615037,1707479434305,-251.9330604,0.00024994,2]
[313615038,1707479434338,-11971.73408227,0.00024994,2]
[313615039,1707479434348,-350.0,0.00025,3]
[313615040,1707479434357,-1045.1529,0.00026681,2]
[313615041,1707479434366,-499.99,0.00026793,2]
[313615042,1707479434375,-14281.0,0.000273,2]
[313615043,1707479434384,-3078.0,0.000273,2]
[313615044,1707479434394,-7932.18,0.000273,2]
[313615045,1707479434403,-210.0,0.00027367,2]
[313615046,1707479434413,-156.4,0.00028985,2]
[313615047,1707479434422,-2444.9052,0.0002975,2]
[313615048,1707479434432,-1010.312,0.00029822,2]
[313615049,1707479434442,-4213.9557,0.0002985,2]
[313615050,1707479434453,-34681.39176773,0.0002985,2]
[313615051,1707479434470,-5194.0490114,0.0002985,2]
[313615052,1707479434482,-435.94102087,0.0002985,2]
[313615053,1707479434494,-308.05991446,0.0002985,2]
[313615054,1707479434507,-796.19008554,0.0002985,2]
[313615055,1707479434517,-8783.95194454,0.00029949,2]
[313615057,1707479434527,-178.91,0.00030714,2]
[313615059,1707479434537,-150.0,0.00030825,2]
[313615062,1707479434548,-2000.0,0.0003088,4]
[313615064,1707479434559,-2387.28,0.00030977,2]
[313615067,1707479434569,-497.3082028,0.00030977,4]
[313615069,1707479434579,-3336.34917432,0.00030977,4]
[313615070,1707479434589,-2631.72549076,0.00030977,2]
[313615072,1707479434599,-156.77297195,0.00030978,4]
[313615074,1707479434609,-1054.05254767,0.00030978,4]
[313615076,1707479434619,-497.03349371,0.00030978,4]
[313615078,1707479434628,-184.51243623,0.00030978,4]
[313615080,1707479434638,-535.3758051,0.00030978,4]
[313615082,1707479434648,-250.0,0.00031119,2]
[313615084,1707479434657,-48.53784736,0.00031223,2]
[313615086,1707479434670,-108.30215264,0.00031223,2]
[313615088,1707479434680,-500.62,0.00031322,2]
[313615090,1707479434690,-156.4,0.00031516,2]
[313615092,1707479434700,-250.0,0.0003201,2]
[313615094,1707479434709,-500.0,0.00032292,2]
[313615096,1707479434719,-161.95,0.00032805,2]
[313615098,1707479434728,-207.87256644,0.00032981,6]
[313615101,1707479434741,-198.38110577,0.00032981,6]
[313615102,1707479434751,-211.20160549,0.00032981,6]
[313615104,1707479434761,-437.18801607,0.00032981,6]
[313615106,1707479434771,-180.0,0.00033619,2]
[313615108,1707479434781,-178.91,0.00033786,2]
[313615111,1707479434791,-155.0,0.00034,4]
[313615112,1707479434801,-78.29401882,0.00034045,4]
[313615117,1707479434834,-688.62630439,0.00034045,4]
[313615119,1707479434843,-156.4,0.00034046,2]
[313615121,1707479434852,-500.0,0.00034284,2]
[313615123,1707479434862,-2574.229043,0.000345,2]
[313615125,1707479434871,-5302.303052,0.0003452,2]
[313615127,1707479434881,-14252.75178161,0.0003452,2]
[313615129,1707479434893,-2801.02249114,0.0003452,2]
[313615131,1707479434905,-2164.97936027,0.0003452,2]
[313615160,1707479439980,-301.1863277,0.00024868,2]
[313615164,1707479440687,-225.09448372,0.00024868,2]
[313615165,1707479440698,-7841.87420476,0.0003452,2]
[313615166,1707479440710,-4969.11839999,0.0003452,2]
[313615167,1707479440722,-400.11407784,0.0003452,2]